bitfinex/quotes_ETHUSD_20241215
["timestamp","ask_amount","ask_price","bid_price","bid_amount"]
[1734269988362,2.57553,3882.7,3881.6,0.7938]
[1734269991013,3.0,3883.1,3881.6,0.7938]
[1734269991014,2.5756,3882.6,3881.6,0.7938]
[1734269991365,2.57561,3882.6,3881.6,0.7938]
[1734269991561,2.5758,3882.3,3881.6,0.7938]
[1734269991767,2.57586,3882.2,3881.6,0.7938]
[1734269992701,2.57593,3882.1,3881.6,0.7938]
[1734269993009,2.57599,3882.0,3881.6,0.7938]
[1734269993210,0.7909,3882.4,3881.6,0.7938]
[1734269993451,0.7909,3882.4,3880.3,2.57707]
[1734269993452,2.57621,3881.7,3881.2,0.7938]
[1734269993756,0.7909,3882.4,3881.2,0.7938]
[1734269993757,2.57627,3881.6,3881.2,0.7938]
[1734269994552,2.57612,3881.8,3881.2,0.7938]
[1734269994755,0.7909,3882.4,3881.2,0.7938]
[1734269994967,2.57599,3882.0,3881.3,0.02464148]
[1734269995867,2.57599,3882.0,3881.4,0.7769]
[1734269996067,2.57568,3882.5,3881.4,0.7769]
[1734269996287,2.57568,3882.5,3881.6,0.7769]
[1734269996643,2.57568,3882.5,3881.7,0.02402129]
[1734269997576,2.57573,3882.4,3881.7,0.02402129]
[1734269997743,2.57573,3882.4,3881.6,0.7769]
[1734269998759,3.08972118,3882.9,3881.6,0.7769]
[1734269998958,2.57559,3882.7,3881.6,0.7769]
[1734269999474,2.57559,3882.7,3881.7,0.02395911]
[1734270000633,2.57536,3883.0,3881.8,0.7769]
[1734270001092,2.5754,3882.9,3881.9,0.02382354]
[1734270001273,2.57549,3882.8,3881.9,0.02382354]
[1734270001693,2.57549,3882.8,3881.8,0.7769]
[1734270001991,2.57549,3882.8,3881.9,0.02421561]
[1734270003230,3.0,3883.0,3882.0,0.7769]
[1734270003435,5.57534,3883.0,3882.0,0.7769]
[1734270003684,3.0,3882.8,3882.2,0.7769]
[1734270004355,3.0,3882.7,3882.2,0.7769]
[1734270005294,2.57548,3882.8,3882.2,0.7769]
[1734270005435,5.57527,3883.1,3882.2,0.7769]
[1734270005875,3.0,3883.1,3882.2,0.7769]
[1734270006189,0.52478388,3883.4,3882.2,0.7769]
[1734270006190,3.0,3882.9,3882.2,0.7769]
[1734270006531,2.57541,3882.9,3882.2,0.7769]
[1734270007364,3.52478388,3883.4,3882.2,0.7769]
[1734270007571,3.0,3883.2,3882.2,0.7769]
[1734270008373,2.57535,3883.0,3882.2,0.7769]
[1734270008552,3.0,3883.1,3882.2,0.7769]
[1734270008772,2.5752,3883.2,3882.3,0.02368051]
[1734270008953,2.5752,3883.2,3882.3,0.7769]
[1734270009141,3.35715,3883.5,3882.3,0.7769]
[1734270009486,2.57505,3883.5,3882.3,0.7769]
[1734270009836,0.50698377,3884.3,3882.5,0.7769]
[1734270010152,0.50698377,3884.3,3882.2,0.52800077]
[1734270010153,2.57454,3884.2,3882.7,0.7769]
[1734270010353,2.57454,3884.2,3882.9,0.7769]
[1734270010851,2.57454,3884.2,3883.1,0.7769]
[1734270011187,2.57454,3884.2,3883.2,0.02825022]
[1734270011396,2.57454,3884.2,3883.3,0.7769]
[1734270011537,3.0,3884.4,3883.3,0.80509244]
[1734270011738,2.57429,3884.6,3883.3,0.7769]
[1734270012042,2.5744,3884.4,3883.4,0.80503467]
[1734270012442,0.257429,3884.6,3883.4,0.7769]
[1734270012763,0.51509416,3884.9,3883.1,0.55]
[1734270013089,2.57427,3884.6,3883.2,0.7769]
[1734270015386,0.7821,3885.1,3883.2,0.7769]
[1734270015387,0.7821,3885.1,3883.2,0.80264734]
[1734270015894,0.7821,3885.1,3883.2,0.7769]
[1734270016094,2.57401,3885.0,3883.4,0.7727]
[1734270016391,2.57383,3885.3,3883.7,0.7727]
[1734270016590,2.57383,3885.3,3883.8,0.7727]
[1734270016946,0.7859,3885.8,3883.8,3.37322334]
[1734270016947,2.57364,3885.6,3883.8,3.37322334]
[1734270017197,2.57343,3885.9,3883.9,0.7727]
[1734270017381,2.57357,3885.7,3884.1,0.7727]
[1734270017549,2.57357,3885.7,3884.3,0.7727]
[1734270017895,2.57363,3885.6,3884.3,0.79844214]
[1734270018104,2.57363,3885.6,3884.3,0.7984416]
[1734270018596,2.57363,3885.6,3884.3,0.7727]
[1734270018894,3.7859,3886.1,3884.3,0.7727]
[1734270019077,3.0,3885.6,3884.5,0.7727]
[1734270019396,3.0,3885.9,3884.5,0.7727]
[1734270019549,2.57388,3885.2,3884.5,0.7727]
[1734270019901,2.57349,3885.8,3884.5,0.7727]
[1734270019902,2.57347,3885.8,3884.5,0.7727]
[1734270020047,2.57404,3885.0,3884.5,0.7727]
[1734270020395,0.257404,3884.9,3884.5,0.7727]
[1734270020578,2.57388,3885.2,3884.5,0.7727]
[1734270021104,2.57408,3884.9,3884.5,0.7727]
[1734270021306,0.7859,3885.3,3884.5,0.7727]
[1734270021452,2.57423,3884.7,3884.5,0.7727]
[1734270022289,2.5736,3885.6,3884.5,0.7727]
[1734270022290,3.0,3885.5,3884.5,0.7727]
[1734270022446,2.57401,3885.0,3884.5,0.7727]
[1734270023105,3.0,3885.5,3884.5,0.7727]
[1734270023106,2.5739,3885.2,3884.5,0.7727]
[1734270023288,2.57394,3885.1,3884.5,0.7727]
[1734270023506,2.57402,3885.0,3884.5,0.7727]
[1734270024175,2.57385,3885.3,3884.5,0.7727]
[1734270025170,2.57387,3885.2,3884.5,0.7727]
[1734270025621,2.5735,3885.8,3884.5,0.7727]
[1734270025783,2.5738,3885.3,3884.5,0.7727]
[1734270025982,3.0,3885.6,3884.5,0.7727]
[1734270026173,2.57392,3885.2,3884.5,0.7727]
[1734270027488,2.57395,3885.1,3884.5,0.7727]
[1734270027695,2.831345,3885.1,3884.5,0.7727]
[1734270029013,3.0,3885.6,3884.5,0.7727]
[1734270029014,2.57377,3885.4,3884.5,0.7727]
[1734270029636,2.57382,3885.3,3884.5,0.7727]
[1734270030189,3.5040364,3885.9,3884.5,0.7727]
[1734270030385,2.5736,3885.6,3884.5,0.7727]
[1734270030633,2.574,3885.0,3884.5,0.7727]
[1734270033726,2.57422,3884.7,3884.5,0.7727]
[1734270034596,0.2574,3885.0,3884.5,0.7727]
[1734270034805,2.57426,3884.6,3884.5,0.7727]
[1734270035854,0.2574,3885.0,3883.6,0.766]
[1734270036041,2.57464,3884.1,3883.6,0.766]
[1734270036753,2.57481,3883.8,3883.6,0.766]
[1734270038014,3.0,3884.7,3883.6,0.766]
[1734270038198,2.57452,3884.3,3883.6,0.766]
[1734270038620,2.57474,3883.9,3883.6,0.766]
[1734270038917,2.5748,3883.8,3883.6,0.766]
[1734270039823,2.57495,3883.6,3882.5,0.766]
[1734270040061,2.57495,3883.6,3882.7,0.766]
[1734270040770,0.7762,3884.4,3882.7,0.766]
[1734270041121,2.57474,3883.9,3882.8,0.55]
[1734270041417,2.5746,3884.1,3882.9,0.766]
[1734270041661,2.5746,3884.1,3882.8,0.55]
[1734270041662,2.5746,3884.1,3883.0,0.8976]
[1734270042870,3.0,3884.7,3883.2,0.766]
[1734270043074,2.57436,3884.5,3883.4,0.766]
[1734270043275,2.57436,3884.5,3883.3,0.766]
[1734270043575,2.5741,3884.9,3883.3,0.766]
[1734270043576,2.5744,3884.4,3883.3,0.766]
[1734270044583,2.57427,3884.6,3883.3,0.766]
[1734270045050,2.57427,3884.6,3883.5,0.766]
[1734270046535,2.57402,3885.0,3883.6,0.57574611]
[1734270046733,1.59562244,3885.3,3883.6,0.57574611]
[1734270046734,2.57406,3884.9,3883.6,0.57574611]
[1734270047049,2.57406,3884.9,3883.7,0.766]
[1734270048129,2.57414,3884.8,3883.7,0.766]
[1734270048330,0.52228449,3885.3,3883.9,0.766]
[1734270048531,2.57445,3884.4,3883.9,0.766]
[1734270048836,2.57447,3884.3,3883.9,0.766]
[1734270049385,2.57432,3884.6,3883.9,0.766]
[1734270049534,2.57434,3884.5,3883.9,0.766]
[1734270051329,2.5744,3884.4,3883.9,0.766]
[1734270051779,0.25744,3884.4,3883.9,0.766]
[1734270051981,2.57463,3884.1,3883.9,0.766]
[1734270053581,2.57466,3884.0,3883.9,0.766]
[1734270053787,2.57476,3883.9,3883.1,0.8293]
[1734270054829,2.57487,3883.7,3883.1,0.8293]
[1734270056499,2.5748,3883.8,3883.1,0.8293]
[1734270057185,1.07333795,3884.1,3883.1,0.8293]
[1734270057387,1.07333795,3884.4,3883.4,0.55]
[1734270057550,3.64762795,3884.6,3883.6,0.8293]
[1734270057740,0.87026314,3884.5,3883.6,0.8293]
[1734270057942,2.57429,3884.6,3883.6,0.8293]
[1734270058143,1.07333795,3884.9,3883.7,0.55]
[1734270058342,2.57413,3884.8,3883.9,0.55]
[1734270058557,2.57413,3884.8,3884.0,0.8293]
[1734270060184,0.8309,3884.9,3884.0,0.8293]
[1734270060484,1.07333795,3884.5,3883.1,0.8293]
[1734270060683,2.57473,3883.9,3883.1,1.07190578]
[1734270060931,2.57487,3883.7,3883.1,0.8293]
[1734270061246,2.57495,3883.6,3883.1,0.8293]
[1734270061985,1.07333795,3884.1,3883.1,0.8293]
[1734270062155,2.57475,3883.9,3883.1,0.8293]
[1734270062340,0.8309,3884.5,3883.1,0.8293]
[1734270062341,1.07333795,3884.1,3883.1,0.8293]
[1734270062998,2.57484,3883.8,3883.1,0.8293]
[1734270063285,2.57481,3883.8,3883.1,0.8293]
[1734270066019,2.57487,3883.7,3883.1,0.8293]
[1734270067313,1.07333795,3884.2,3883.1,0.8293]
[1734270067613,2.57486,3883.7,3883.1,0.8293]
[1734270067773,2.57473,3883.9,3883.1,0.8293]
[1734270067967,0.26833449,3884.1,3883.1,0.8293]
[1734270068167,2.5748,3883.8,3883.1,0.8293]
[1734270068667,2.57462,3884.1,3883.1,0.8293]
[1734270069312,2.57462,3884.1,3883.2,0.8293]
[1734270069612,1.07333795,3884.4,3883.2,0.8293]
[1734270069922,2.5745,3884.3,3883.3,0.55]
[1734270072976,2.5745,3884.3,3883.4,0.8293]
[1734270073520,1.07333795,3884.5,3883.4,0.8293]
[1734270073816,3.24888723,3884.5,3883.4,0.8293]
[1734270074023,2.57453,3884.2,3883.4,0.96723]
[1734270076317,0.759,3884.3,3883.4,0.8293]
[1734270076479,2.57499,3883.5,3883.1,0.7917]
[1734270076999,2.57517,3883.3,3883.1,0.7917]
[1734270077722,1.83233795,3883.7,3882.4,1.07369284]
[1734270077876,2.17667965,3883.6,3882.7,0.7917]
[1734270078090,2.57521,3883.2,3882.7,0.7917]
[1734270079175,2.57507,3883.4,3882.7,0.7917]
[1734270079476,2.57513,3883.3,3882.7,0.7917]
[1734270080292,1.83233795,3883.7,3882.7,0.7917]
[1734270080512,2.57519,3883.2,3882.7,0.7917]
[1734270083462,1.07333795,3883.6,3882.7,0.7917]
[1734270083606,3.25017707,3883.5,3882.7,0.7917]
[1734270083810,2.57524,3883.2,3882.7,0.7917]
[1734270086812,2.57504,3883.5,3882.7,0.7917]
[1734270087213,2.57513,3883.3,3882.7,0.7917]
[1734270088214,2.57499,3883.5,3882.7,0.7917]
[1734270088377,2.57499,3883.5,3882.7,0.97823928]
[1734270088580,2.57492,3883.7,3882.7,0.97823928]
[1734270088785,2.575,3883.5,3882.7,0.97823928]
[1734270090239,2.57514,3883.3,3882.7,0.7917]
[1734270090746,1.07333795,3883.5,3882.7,0.7917]
[1734270090941,2.57532,3883.1,3882.7,0.7917]
[1734270091232,4.18499693,3883.5,3882.0,1.57637538]
[1734270091233,3.64847795,3883.3,3882.0,0.7917]
[1734270091434,2.57544,3882.9,3882.0,0.7917]
[1734270091784,2.57547,3882.8,3882.0,0.7917]
[1734270093481,1.07333795,3883.3,3882.0,0.7917]
[1734270093748,2.57513,3883.3,3882.2,0.7917]
[1734270093886,2.57519,3883.2,3882.2,0.7917]
[1734270094082,2.57519,3883.2,3882.4,0.7838]
[1734270094284,1.07333795,3883.5,3882.5,0.57575446]
[1734270094583,3.64832795,3883.6,3882.6,0.7838]
[1734270094850,2.57499,3883.6,3882.6,0.7838]
[1734270095492,1.07333795,3883.8,3882.6,0.7838]
[1734270095698,2.57499,3883.5,3882.6,0.7838]
[1734270097147,1.07333795,3883.8,3882.6,0.7838]
[1734270097308,2.57514,3883.3,3882.6,0.7838]
[1734270097708,2.57535,3883.0,3882.6,0.7838]
[1734270098347,2.57519,3883.3,3882.6,0.7838]
[1734270098955,2.575,3883.5,3882.6,0.7838]
[1734270099670,0.86990747,3883.4,3882.6,0.7838]
[1734270100078,2.575,3883.5,3882.6,0.7838]
[1734270100383,1.07333795,3883.7,3882.6,0.7838]
[1734270100542,0.8699609,3883.6,3882.8,0.7838]
[1734270100884,3.4448909,3883.6,3882.8,0.7838]
[1734270101026,2.57493,3883.6,3882.8,0.7838]
[1734270102367,2.57493,3883.6,3882.8,0.91718]
[1734270102526,0.86986289,3883.5,3882.8,0.13338]
[1734270102727,2.57514,3883.3,3882.8,0.7838]
[1734270102929,1.07333795,3883.7,3882.8,0.7838]
[1734270103164,2.57499,3883.5,3882.8,0.7838]
[1734270105734,2.57486,3883.7,3882.9,0.7838]
[1734270105936,2.57486,3883.7,3882.9,0.80955102]
[1734270106137,2.57486,3883.7,3882.9,0.97212439]
[1734270109241,3.44527126,3883.6,3882.9,0.97212439]
[1734270109439,2.57494,3883.6,3882.9,0.7838]
[1734270110037,1.07333795,3883.8,3882.9,0.7838]
[1734270110239,2.57509,3883.4,3882.9,0.7838]
[1734270111885,1.07333795,3883.6,3882.9,0.7838]
[1734270112195,2.57513,3883.3,3882.9,0.7838]
[1734270115116,1.07333795,3883.5,3882.9,0.7838]
[1734270115117,2.57499,3883.5,3882.9,0.7838]
[1734270115459,2.57506,3883.4,3882.9,0.7838]
[1734270116053,3.64830795,3883.6,3882.9,0.7838]
[1734270116262,1.07333795,3883.7,3883.0,0.0257526]
[1734270116455,4.18477693,3883.9,3883.0,0.0257526]
[1734270116456,1.07333795,3883.8,3883.1,0.756]
[1734270116660,3.25057723,3883.8,3883.1,0.756]
[1734270116903,0.87083888,3883.7,3883.1,0.756]
[1734270117110,1.07333795,3883.8,3883.1,0.756]
[1734270117319,3.64813795,3883.8,3883.1,0.756]
[1734270117514,3.44578297,3883.7,3883.1,0.756]
[1734270117681,0.87090372,3883.6,3883.1,0.756]
[1734270118267,1.07333795,3883.8,3883.1,0.756]
[1734270118468,3.25065206,3883.8,3883.1,0.756]
[1734270119868,0.87092564,3883.7,3883.1,0.756]
[1734270120110,1.07333795,3883.8,3883.2,0.756]
[1734270120311,1.07333795,3883.9,3883.2,0.756]
[1734270120466,3.2512478,3883.9,3883.2,0.756]
[1734270120667,2.17784758,3883.8,3883.2,0.756]
[1734270120906,1.07333795,3883.9,3883.2,0.756]
[1734270121218,1.07333795,3883.9,3883.2,1.19650728]
[1734270121869,3.2510857,3884.0,3883.2,1.19650728]
[1734270122101,3.25128973,3883.9,3883.2,1.19650728]
[1734270122314,2.17795178,3883.8,3883.3,0.756]
[1734270122613,1.07333795,3884.0,3883.4,0.756]
[1734270122815,0.87139427,3883.9,3883.4,0.756]
[1734270123001,1.07333795,3884.1,3883.5,0.22702001]
[1734270123204,1.07333795,3884.1,3883.6,0.756]
[1734270124208,0.87142873,3884.0,3883.6,0.756]
[1734270124402,1.07333795,3884.2,3883.6,0.756]
[1734270124710,3.25132107,3884.2,3883.6,0.756]
[1734270125114,5.82587107,3884.2,3883.6,0.756]
[1734270125314,2.57467,3884.0,3883.6,0.756]
[1734270125678,1.07333795,3884.2,3883.6,0.756]
[1734270125880,3.64786795,3884.2,3883.6,0.756]
[1734270126074,2.18519955,3884.1,3883.6,0.756]
[1734270126399,2.57461,3884.1,3883.6,0.756]
[1734270126602,2.5748,3883.8,3883.6,0.756]
[1734270126902,2.5748,3883.8,3883.0,1.306]
[1734270127070,1.07333795,3883.9,3883.0,1.306]
[1734270127275,1.07333795,3883.9,3882.8,1.59100036]
[1734270127276,1.07333795,3884.0,3883.2,1.306]
[1734270127714,0.87385701,3883.9,3883.2,1.306]
[1734270127913,1.07333795,3884.0,3883.2,1.306]
[1734270128291,3.64799795,3884.0,3883.2,1.306]
[1734270128609,0.8738646,3883.9,3883.2,1.306]
[1734270128810,3.64799795,3884.0,3883.2,1.306]
[1734270129109,0.87383558,3883.9,3883.2,1.306]
[1734270129332,0.87383558,3883.9,3883.2,0.78796928]
[1734270129514,2.57466,3884.0,3883.2,0.78796928]
[1734270129515,2.57466,3884.0,3883.3,0.756]
[1734270130090,1.07333795,3884.1,3883.3,0.756]
[1734270130416,3.64786795,3884.2,3883.3,0.756]
[1734270130605,2.18401757,3884.1,3883.3,0.756]
[1734270130808,3.64786795,3884.2,3883.3,0.756]
[1734270131001,0.8736187,3884.1,3883.4,0.756]
[1734270131520,1.61000693,3884.4,3883.4,0.756]
[1734270131521,3.64780795,3884.3,3883.4,0.756]
[1734270131819,3.25730926,3884.2,3883.4,0.756]
[1734270132179,0.87358852,3884.1,3883.4,0.756]
[1734270132404,3.64780795,3884.3,3883.4,0.756]
[1734270132598,2.18383263,3884.2,3883.4,0.756]
[1734270132802,0.87353305,3884.1,3883.4,0.756]
[1734270133040,3.64780795,3884.3,3883.4,0.756]
[1734270133202,2.1837698,3884.2,3883.4,0.756]
[1734270133803,1.07333795,3884.4,3883.5,0.7602]
[1734270133999,1.07333795,3884.6,3883.8,0.7602]
[1734270134243,5.25747488,3884.8,3883.8,0.7602]
[1734270134447,0.87366017,3884.7,3884.0,0.7602]
[1734270134743,0.8018,3884.9,3884.1,0.02574291]
[1734270134744,1.07333795,3884.9,3884.1,0.02574291]
[1734270134918,1.61000693,3885.1,3883.9,0.55]
[1734270134919,1.07333795,3885.1,3883.9,0.55]
[1734270135255,1.07333795,3885.1,3884.1,0.7602]
[1734270135256,0.87371875,3885.1,3884.1,0.7602]
[1734270135431,1.61000693,3885.4,3884.2,2.60027159]
[1734270135432,1.07333795,3885.4,3884.2,2.60027159]
[1734270135760,3.64715795,3885.3,3884.3,0.7602]
[1734270135904,0.87334656,3885.2,3884.3,0.7602]
[1734270136418,3.44722656,3885.2,3884.3,0.7602]
[1734270136623,2.57388,3885.2,3884.3,0.92055893]
[1734270138613,2.57396,3885.1,3884.3,0.92055893]
[1734270138840,2.57373,3885.4,3884.3,0.92055893]
[1734270139043,2.57402,3885.0,3884.3,0.7602]
[1734270140370,1.07333795,3885.4,3884.3,0.7602]
[1734270140371,2.57428,3884.6,3884.3,0.7602]
[1734270146352,2.57118369,3884.6,3884.3,0.7602]
[1734270146537,2.57436,3884.5,3884.3,0.7602]
[1734270151066,2.57436,3884.5,3883.6,0.7602]
[1734270151302,2.57436,3884.5,3883.8,0.55]
[1734270151508,0.8018,3884.9,3883.6,0.7602]
[1734270152336,0.87215833,3884.8,3883.6,0.7602]
[1734270153194,2.57454,3884.2,3883.6,0.7602]
[1734270155281,2.57427,3884.6,3883.6,0.7602]
[1734270157804,2.57442,3884.4,3883.6,0.7602]
[1734270158137,2.57447,3884.3,3883.6,0.7602]
[1734270159143,2.57431,3884.6,3883.6,0.7602]
[1734270159378,1.07333795,3884.9,3883.6,0.7602]
[1734270159482,2.57421,3884.7,3883.6,0.7602]
[1734270159829,2.57421,3884.7,3883.8,0.8238]
[1734270160485,1.07333795,3885.0,3883.8,0.8238]
[1734270160687,2.57406,3884.9,3883.8,0.8238]
[1734270160922,2.5743,3884.6,3883.8,0.8238]
[1734270162244,2.57434,3884.5,3883.8,0.8238]
[1734270163538,2.57417,3884.8,3883.8,0.8238]
[1734270163704,2.5742,3884.7,3883.8,0.8238]
[1734270164918,2.5742,3884.7,3883.9,0.18974928]
[1734270165121,2.5742,3884.7,3883.8,0.8238]
[1734270166259,2.5742,3884.7,3883.9,0.89153115]
[1734270166492,2.5742,3884.7,3884.0,0.8238]
[1734270166840,1.07333795,3885.0,3884.0,0.8238]
[1734270167143,2.57407,3884.9,3884.0,0.8238]
[1734270167385,0.87326146,3884.8,3884.0,0.8238]
[1734270167587,2.57407,3884.9,3884.0,0.8238]
[1734270168380,0.87332986,3884.8,3884.0,0.8238]
[1734270168562,3.64733795,3885.0,3884.1,0.339855]
[1734270168870,0.87334652,3884.9,3884.2,0.8238]
[1734270171977,1.07333795,3885.1,3884.2,0.8238]
[1734270172175,3.25651865,3885.1,3884.2,0.8238]
[1734270172406,2.1831807,3885.0,3884.2,0.8238]
[1734270172726,1.07333795,3885.1,3884.2,0.8238]
[1734270172926,3.25673326,3885.1,3884.2,0.8238]
[1734270173231,0.87335812,3885.0,3884.2,0.8238]
[1734270173431,1.07333795,3885.1,3884.2,0.8238]
[1734270173724,3.25693888,3885.1,3884.2,0.8238]
[1734270173870,0.87344037,3885.0,3884.2,0.8238]
[1734270174071,1.07333795,3885.1,3884.2,0.8238]
[1734270174315,3.25666358,3885.1,3884.2,0.8238]
[1734270174830,1.07333795,3885.3,3884.4,0.8326]
[1734270174992,3.25689512,3885.3,3884.6,0.8326]
[1734270175179,1.07333795,3885.6,3884.8,0.8326]
[1734270175378,3.2570542,3885.6,3885.0,0.8326]
[1734270175598,0.8734865,3885.5,3885.0,0.8326]
[1734270175902,1.07333795,3885.7,3885.0,0.8326]
[1734270176578,3.64687795,3885.7,3885.0,0.8326]
[1734270176778,2.1837,3885.6,3885.0,0.8326]
[1734270177213,2.1837,3885.6,3885.0,0.97086]
[1734270177414,3.64687795,3885.7,3885.0,0.97086]
[1734270177636,0.87355754,3885.6,3885.0,0.97086]
[1734270177785,2.18392718,3885.6,3885.0,0.97086]
[1734270178382,3.64687795,3885.7,3885.0,0.97086]
[1734270178634,0.87348635,3885.6,3885.0,0.97086]
[1734270181731,3.44708635,3885.6,3885.0,0.97086]
[1734270181944,0.8037,3885.6,3885.0,0.8326]
[1734270182231,2.57393,3885.1,3884.4,0.8326]
[1734270182434,1.07333795,3885.3,3884.4,0.8326]
[1734270182651,2.57404,3885.0,3884.4,0.8326]
[1734270184151,2.57388,3885.2,3884.4,0.8326]
[1734270184313,2.57388,3885.2,3884.5,0.55]
[1734270184512,2.57371,3885.5,3884.7,0.8326]
[1734270184713,2.57373,3885.4,3884.7,0.8326]
[1734270185225,0.87315485,3885.3,3884.7,0.8326]
[1734270185906,2.5738,3885.3,3884.7,0.8326]
[1734270188911,1.07704144,3885.5,3884.7,0.8326]
[1734270189111,1.07704144,3885.3,3884.1,1.3826]
[1734270189309,2.57408,3884.9,3884.1,1.3826]
[1734270189524,2.57414,3884.8,3884.1,0.8326]
[1734270189924,1.88074144,3885.0,3884.1,0.8326]
[1734270190124,0.87310387,3884.9,3884.1,0.8326]
[1734270190514,3.25971531,3884.9,3884.1,0.8326]
[1734270190860,2.18269766,3884.8,3884.1,0.8326]
[1734270191154,2.57433,3884.5,3884.1,0.8326]
[1734270191465,1.07704144,3884.9,3884.1,0.8326]
[1734270191466,2.57453,3884.2,3884.1,0.8326]
[1734270191765,2.57453,3884.2,3883.8,0.52229911]
[1734270193054,2.57453,3884.2,3883.8,0.65778902]
[1734270194249,2.57441,3884.4,3883.8,0.65778902]
[1734270195759,2.57437,3884.5,3883.9,0.7678]
[1734270196061,2.57441,3884.4,3883.9,0.7678]
[1734270196215,2.57441,3884.4,3884.0,0.1425589]
[1734270198428,2.57441,3884.4,3883.9,0.7678]
[1734270199443,1.07704144,3884.7,3883.9,0.7678]
[1734270199626,2.57453,3884.2,3883.9,0.7678]
[1734270203837,2.57438,3884.5,3883.9,0.7678]
[1734270204032,2.5742,3884.7,3883.9,0.7678]
[1734270204251,2.5742,3884.7,3884.0,0.12900991]
[1734270204480,2.5742,3884.7,3883.9,0.7678]
[1734270205946,2.5742,3884.7,3883.8,0.52229911]
[1734270205947,1.07704144,3884.9,3884.1,0.7678]
[1734270206164,3.65112144,3884.9,3884.1,0.7678]
[1734270206367,0.87569018,3884.8,3884.1,0.7678]
[1734270206981,2.57408,3884.9,3884.1,0.7678]
[1734270207182,2.57408,3884.9,3884.2,0.13178]
[1734270208175,1.07704144,3885.0,3884.1,0.7678]
[1734270208381,2.57427,3884.6,3884.1,0.7678]
[1734270210319,1.07704144,3885.0,3884.1,0.7678]
[1734270210544,2.57434,3884.5,3884.1,0.7678]
[1734270215676,1.07704144,3884.8,3884.1,0.7678]
[1734270215923,2.57448,3884.3,3883.5,0.8032]
[1734270216437,2.57467,3884.0,3883.7,0.50798635]
[1734270218806,2.57467,3884.0,3883.5,0.8032]
[1734270220926,2.57467,3884.0,3883.6,0.52116609]
[1734270223748,2.57447,3884.3,3883.6,0.52116609]
[1734270223947,1.07704144,3884.5,3883.7,0.13243661]
[1734270224246,0.87555951,3884.4,3883.7,0.13243661]
[1734270224650,2.57446,3884.4,3883.7,0.13243661]
[1734270224817,2.57448,3884.3,3883.7,0.13243661]
[1734270225401,2.57448,3884.3,3883.8,0.7569]
[1734270229171,2.5744,3884.4,3883.8,0.7569]
[1734270229376,0.87631092,3884.3,3883.8,0.7569]
[1734270230148,2.57447,3884.3,3883.8,0.7569]
[1734270230544,2.57447,3884.3,3883.6,0.52116609]
[1734270231491,0.87644863,3884.2,3883.6,0.52116609]
[1734270232492,2.57447,3884.3,3883.6,0.52116609]
[1734270232675,0.87655868,3884.2,3883.6,0.52116609]
[1734270232993,0.87655868,3884.2,3883.6,0.75679015]
[1734270234363,0.87655868,3884.2,3883.7,0.805]
[1734270234759,1.07704144,3884.4,3883.7,0.805]
[1734270234959,3.26965039,3884.4,3883.7,0.83074565]
[1734270235863,3.26965039,3884.4,3883.7,0.805]
[1734270236064,3.26965039,3884.4,3883.8,0.26399647]
[1734270236267,0.87704358,3884.3,3883.9,0.805]
[1734270236512,1.07704144,3884.5,3884.0,0.55]
[1734270236661,1.07704144,3884.5,3884.1,0.805]
[1734270236856,1.31577692,3884.5,3884.1,0.96689965]
[1734270237061,1.07704144,3884.7,3884.1,0.96689965]
[1734270237262,3.27000934,3884.7,3884.1,0.96689965]
[1734270238591,2.1929679,3884.6,3884.1,0.96689965]
[1734270238783,1.07704144,3884.7,3884.1,0.96689965]
[1734270239012,1.07704144,3884.7,3884.2,0.15168997]
[1734270239323,1.95422893,3884.7,3884.2,0.15168997]
[1734270239526,0.87718749,3884.6,3884.2,0.15168997]
[1734270239685,1.07704144,3884.7,3884.2,0.15168997]
[1734270240116,0.8771793,3884.6,3884.2,0.15168997]
[1734270240280,1.07704144,3884.7,3884.2,0.15168997]
[1734270240480,0.87720219,3884.6,3884.2,0.15168997]
[1734270240799,1.07704144,3884.8,3884.2,0.15168997]
[1734270240991,3.27002022,3884.8,3884.2,0.15168997]
[1734270241176,0.87719151,3884.7,3884.3,0.805]
[1734270241376,1.07704144,3884.9,3884.3,0.805]
[1734270241615,1.95418808,3885.0,3884.5,0.805]
[1734270241814,2.19290853,3884.9,3884.5,0.955669]
[1734270242018,1.07704144,3885.0,3884.5,0.955669]
[1734270242990,1.07704144,3885.2,3884.5,0.955669]
[1734270243198,4.72769288,3885.6,3884.5,0.955669]
[1734270243199,1.95444175,3885.3,3884.5,0.955669]
[1734270243430,2.1932574,3885.2,3884.5,0.955669]
[1734270243592,1.07704144,3885.3,3884.7,0.805]
[1734270243993,1.95425205,3885.3,3884.7,0.805]
[1734270244193,3.27006797,3885.3,3884.7,0.805]
[1734270244396,0.87707414,3885.2,3884.7,0.805]
[1734270244621,1.07704144,3885.3,3884.7,0.805]
[1734270244827,3.26967559,3885.3,3884.7,0.805]
[1734270245228,1.07704144,3885.5,3884.8,0.55]
[1734270245602,1.07704144,3885.5,3884.9,0.805]
[1734270246240,1.07704144,3885.6,3884.9,0.805]
[1734270246440,2.19161385,3885.6,3884.9,0.805]
[1734270246736,1.07704144,3885.8,3884.9,0.805]
[1734270246901,1.07704144,3885.9,3885.1,0.805]
[1734270247113,1.07704144,3885.9,3885.2,0.02573715]
[1734270247114,2.19148585,3885.9,3885.2,0.02573715]
[1734270247305,2.19148585,3885.9,3885.3,0.805]
[1734270247500,4.72726288,3886.3,3885.4,0.805]
[1734270247501,1.07704144,3886.1,3885.4,0.805]
[1734270247722,1.07704144,3886.3,3885.4,0.805]
[1734270247901,2.57308,3886.4,3885.4,0.805]
[1734270248529,2.57317,3886.3,3885.5,0.805]